bitfinex-derivatives/quotes_ETHF0:USTF0_20260120
["timestamp","ask_amount","ask_price","bid_price","bid_amount"]
[1768924972557,3.71697338,3032.8,3031.0,3.40483085]
[1768924974261,3.71697338,3032.8,3030.6,5.22866932]
[1768924974567,3.88199338,3032.8,3030.6,1.92766932]
[1768924975061,3.71697338,3032.6,3030.6,1.92766932]
[1768924975261,3.71697338,3032.4,3030.4,3.40483085]
[1768924975766,3.71697338,3032.4,3030.5,3.40483085]
[1768924976269,0.16504,3032.5,3030.8,5.16737017]
[1768924976464,3.72097793,3033.0,3030.9,3.40483085]
[1768924976664,0.4155654,3032.9,3031.2,1.76253932]
[1768924976971,3.88598793,3033.0,3031.2,1.76253932]
[1768924977168,0.4155552,3032.9,3031.2,1.76253932]
[1768924977357,0.4155552,3032.9,3030.9,3.40483085]
[1768924977358,0.16501,3032.9,3030.9,3.40483085]
[1768924977561,3.88198338,3032.9,3030.9,3.40483085]
[1768924978767,4.29769894,3032.8,3030.9,3.40483085]
[1768924979069,3.88199338,3032.8,3030.9,3.40483085]
[1768924979570,3.71697338,3032.7,3030.8,1.76253932]
[1768924979866,3.72097793,3033.0,3031.4,1.76253932]
[1768924980770,0.00400455,3033.0,3031.8,1.76253932]
[1768924980967,0.00400455,3033.0,3031.8,1.76637361]
[1768924982065,3.72097793,3033.0,3031.8,0.00383429]
[1768924982465,0.00400455,3033.0,3031.8,1.76637361]
[1768924982764,0.16901455,3033.0,3031.8,1.76637361]
[1768924982971,0.16901455,3033.0,3030.7,1.76253932]
[1768924982972,3.71697338,3032.8,3030.7,1.76253932]
[1768924983160,3.71697338,3032.3,3030.5,3.301]
[1768924983365,0.16507,3031.8,3030.5,3.301]
[1768924983573,0.16507,3031.8,3029.9,1.76253932]
[1768924983770,0.16511,3031.2,3029.5,1.76253932]
[1768924984075,3.71697338,3031.6,3029.5,1.76661429]
[1768924984265,4.13341899,3031.5,3029.9,1.76253932]
[1768924984467,3.88206338,3031.5,3029.9,1.76253932]
[1768924984769,3.71697338,3031.3,3029.9,1.76253932]
[1768924985474,3.71697338,3031.8,3030.3,1.76253932]
[1768924985668,0.41676275,3031.7,3030.3,1.76253932]
[1768924985867,3.71697338,3031.8,3030.3,1.76253932]
[1768924986068,0.41674484,3031.7,3030.3,1.76253932]
[1768924986377,3.71697338,3031.8,3030.3,1.76253932]
[1768924986575,0.41688717,3031.7,3030.3,1.76253932]
[1768924986768,3.71697338,3031.8,3030.3,1.76253932]
[1768924987072,0.41688184,3031.7,3030.3,1.76253932]
[1768924987270,3.71697338,3031.8,3029.9,5.16737017]
[1768924987467,3.71697338,3031.6,3029.9,1.76253932]
[1768924987670,3.71697338,3031.6,3029.9,5.16737017]
[1768924987871,3.71697338,3031.6,3029.9,1.76253932]
[1768924989076,3.71697338,3031.6,3030.3,1.76253932]
[1768924989672,3.71697338,3031.6,3029.9,1.76253932]
[1768924990271,3.71697338,3031.6,3030.3,1.76253932]
[1768924990467,0.16507,3031.8,3030.3,1.76253932]
[1768924990673,0.41716359,3031.7,3030.3,1.76253932]
[1768924990876,0.16507,3031.8,3029.8,5.33551412]
[1768924991176,0.41716292,3031.7,3029.9,3.40483085]
[1768924991374,3.71697338,3032.1,3029.9,3.40483085]
[1768924991578,0.41722707,3032.0,3030.1,3.40483085]
[1768924992178,4.29926045,3032.0,3030.1,3.40483085]
[1768924992373,4.13420045,3031.9,3030.1,3.40483085]
[1768924992573,0.41722707,3031.8,3030.1,3.40483085]
[1768924994978,4.11125179,3031.8,3030.1,3.40483085]
[1768924995183,4.11125179,3031.7,3029.6,3.42932409]
[1768924995380,4.11125179,3031.6,3029.8,3.302]
[1768924995575,4.11125179,3031.5,3029.5,0.00407497]
[1768924995879,3.69402472,3031.1,3029.5,0.00407497]
[1768924996086,4.11125179,3031.0,3029.5,0.00407497]
[1768924996281,4.11125179,3030.9,3029.5,0.00407497]
[1768924996483,0.41722707,3030.8,3029.5,0.00407497]
[1768924996679,0.41722707,3030.8,3029.5,3.43339906]
[1768924996680,0.00341615,3030.8,3029.5,3.43339906]
[1768924997591,0.00341615,3030.8,3029.5,0.00407497]
[1768924997795,3.69744087,3030.8,3029.5,0.00407497]
[1768924997990,0.00341615,3030.8,3029.5,0.00407497]
[1768924999090,0.00341615,3030.8,3029.5,3.43339906]
[1768925000492,3.85909472,3031.8,3029.7,3.42932409]
[1768925000788,1.36514273,3031.7,3029.7,3.42932409]
[1768925000989,0.4176582,3031.6,3029.7,3.42932409]
[1768925001195,0.4176582,3031.5,3029.7,3.42932409]
[1768925001388,0.4176582,3031.4,3029.7,3.42932409]
[1768925001693,3.302,3032.4,3029.5,0.00407497]
[1768925001694,3.69402472,3031.2,3029.5,0.00407497]
[1768925001989,3.85914472,3031.0,3029.5,0.00407497]
[1768925002187,4.11168292,3030.9,3029.5,0.00407497]
[1768925002388,0.16512,3031.0,3029.5,0.00407497]
[1768925002389,4.11168292,3030.8,3029.5,0.00407497]
[1768925002686,3.69402472,3030.8,3029.5,0.00407497]
[1768925003994,4.11194048,3030.7,3029.5,0.00407497]
[1768925004294,3.69402472,3030.7,3029.5,0.00407497]
[1768925005095,3.69402472,3030.5,3029.5,0.00407497]
[1768925006188,0.16514,3030.6,3029.5,0.00407497]
[1768925006496,4.11178394,3030.5,3029.5,0.00407497]
[1768925006793,3.69402472,3030.5,3029.5,0.00407497]
[1768925008591,4.1118442,3030.4,3029.5,0.00407497]
[1768925008791,3.69402472,3030.4,3029.5,0.00407497]
[1768925010793,3.85917472,3030.4,3029.5,0.00407497]
[1768925010998,0.16519,3029.6,3027.8,3.799]
[1768925011309,4.11197176,3029.5,3027.6,3.42932409]
[1768925011602,3.69402472,3029.5,3027.6,3.42932409]
[1768925011802,3.69402472,3029.5,3027.5,0.1653]
[1768925011992,3.69402472,3029.5,3027.5,0.16896666]
[1768925012194,3.69402472,3029.3,3027.5,0.00366666]
[1768925012499,0.0024765,3029.3,3027.7,3.59461409]
[1768925012698,0.0024765,3029.3,3027.9,3.59460409]
[1768925013403,0.0024765,3029.3,3028.0,3.59460409]
[1768925014406,0.0024765,3029.3,3028.2,0.16526]
[1768925014805,0.0024765,3029.3,3027.6,5.06850327]
[1768925014993,3.69650122,3029.3,3027.5,3.59829075]
[1768925015198,3.69650122,3029.3,3027.6,1.76550327]
[1768925015505,0.0024765,3029.3,3027.8,0.16529]
[1768925015709,1.838,3030.3,3028.5,1.76550327]
[1768925015710,3.69402472,3030.3,3028.5,1.76550327]
[1768925016003,0.41740617,3030.2,3028.5,1.76550327]
[1768925016209,3.69402472,3030.3,3028.5,1.76550327]
[1768925016401,0.41739545,3030.2,3028.5,1.76550327]
[1768925016598,0.16515,3030.4,3028.6,7.39356409]
[1768925016803,0.16869291,3030.4,3028.7,3.42932409]
[1768925016998,0.00354291,3030.4,3028.7,3.59456409]
[1768925017302,0.00354291,3030.4,3029.0,1.76550327]
[1768925017503,0.00354291,3030.4,3029.0,5.19482736]
[1768925018605,0.00354291,3030.4,3029.1,0.16521]
[1768925019195,0.16512,3031.0,3029.1,3.59453409]
[1768925019501,0.16512,3031.0,3029.2,3.59453409]
[1768925019704,3.69402472,3031.3,3029.2,3.59453409]
[1768925019908,0.41745392,3031.2,3029.2,3.59453409]
[1768925020097,3.69402472,3031.3,3029.2,3.59453409]
[1768925020408,4.11147724,3031.2,3029.3,0.16521]
[1768925020703,3.69402472,3031.2,3029.5,3.42932409]
[1768925021109,0.00405308,3031.3,3029.5,3.42932409]
[1768925021309,0.00405308,3031.3,3029.9,1.76550327]
[1768925021506,3.69402472,3031.7,3030.0,0.16517]
[1768925021802,4.11154599,3031.6,3029.9,1.76887455]
[1768925022002,3.69402472,3031.4,3029.9,0.00337128]
[1768925022208,3.69402472,3031.9,3029.9,3.59786537]
[1768925022406,0.41751715,3031.8,3030.0,3.42932409]
[1768925022606,0.41751715,3031.7,3030.0,3.42932409]
[1768925022903,0.41751715,3031.6,3030.0,3.42932409]
[1768925023101,0.41751715,3031.5,3030.0,3.42932409]
[1768925023407,3.69402472,3031.8,3030.0,3.59449409]
[1768925023598,0.41763403,3031.7,3030.1,0.16516]
[1768925023801,3.69402472,3031.8,3030.1,0.16516]
[1768925024111,0.41762637,3031.7,3030.1,0.16516]
[1768925024302,3.69402472,3031.8,3029.9,1.76887455]
[1768925024504,3.67388368,3031.6,3029.9,1.76887455]
[1768925024702,3.67388368,3031.6,3029.9,0.00337128]
[1768925025402,3.67388368,3031.6,3029.9,1.93404455]
[1768925027410,3.49582992,3031.4,3029.9,0.00337128]
[1768925027611,3.49582992,3031.4,3029.9,3.80237128]
[1768925029405,3.49862891,3031.9,3030.0,3.73235583]
[1768925029711,0.41737218,3031.8,3030.1,0.16516]
[1768925029914,3.49862891,3031.9,3030.1,0.16516]
[1768925030105,0.4173683,3031.8,3030.1,0.16516]
[1768925030407,3.49862891,3031.9,3030.1,0.16516]
[1768925030605,0.41728979,3031.8,3030.1,0.16516]
[1768925030806,3.49862891,3031.9,3030.1,0.16516]
[1768925031007,0.41728955,3031.8,3030.1,0.16516]
[1768925031205,3.49582992,3031.8,3030.1,0.16516]
[1768925031713,3.49582992,3031.8,3030.2,0.16516]
[1768925031918,3.49582992,3031.8,3030.3,3.799]
[1768925032109,0.00279899,3031.9,3030.4,5.72965327]
[1768925032309,3.49862891,3031.9,3030.4,5.56450327]
[1768925032914,3.49862891,3031.9,3030.4,3.799]
[1768925033413,3.49582992,3031.7,3030.4,3.799]
[1768925035916,3.49582992,3031.5,3030.4,3.799]
[1768925036412,3.49582992,3031.5,3029.9,6.33437128]
[1768925039019,0.00279899,3031.9,3030.0,3.73235583]
[1768925039318,3.49862891,3031.9,3030.0,3.73235583]
[1768925039516,3.49862891,3031.9,3030.0,3.89752583]
[1768925040519,3.66369891,3031.9,3030.0,3.89752583]
[1768925040722,3.66369891,3031.9,3030.0,0.16517]
[1768925041221,3.66369891,3031.9,3030.0,3.89752583]
[1768925041618,3.49862891,3031.9,3030.3,1.76550327]
[1768925042018,3.49862891,3031.9,3030.0,3.73235583]
[1768925042224,0.16513,3030.8,3029.9,0.00337128]
[1768925042416,3.66095992,3030.8,3029.9,0.00337128]
[1768925042913,3.49582992,3031.3,3029.9,0.00337128]
[1768925043113,3.91338996,3031.2,3029.9,0.00337128]
[1768925043417,3.49582992,3031.6,3029.9,0.00337128]
[1768925043717,3.91366746,3031.5,3029.9,0.00337128]
[1768925043917,0.41783754,3031.4,3029.9,0.00337128]
[1768925044128,3.49582992,3031.5,3029.9,0.00337128]
[1768925044129,0.41783754,3031.3,3029.9,0.00337128]
[1768925044328,3.49582992,3031.1,3029.9,0.00337128]
[1768925045125,3.91396211,3031.0,3029.9,0.00337128]
[1768925045423,0.41869709,3030.9,3029.9,0.00337128]
[1768925045619,3.49582992,3031.0,3029.9,0.00337128]
[1768925045813,0.41870975,3030.9,3029.9,0.00337128]
[1768925046019,3.66092992,3031.2,3029.9,0.00337128]
[1768925046322,0.41869946,3031.1,3029.9,0.00337128]
[1768925046625,0.41869946,3031.0,3029.9,0.00337128]
[1768925046824,0.41869946,3030.9,3029.9,0.00337128]
[1768925047026,3.49582992,3031.1,3029.9,0.00337128]
[1768925047227,3.91483676,3031.0,3029.9,0.00337128]
[1768925047525,3.91483676,3030.9,3029.9,0.00337128]
[1768925047727,3.49582992,3030.9,3029.9,0.00337128]
[1768925047930,0.1651,3031.2,3029.9,0.00337128]
[1768925048228,0.4192265,3031.1,3029.9,0.00337128]
[1768925048425,0.4192265,3031.0,3029.9,0.00337128]
[1768925048620,0.4192265,3030.9,3029.9,0.00337128]
[1768925048826,3.66092992,3031.2,3029.9,0.00337128]
[1768925049021,3.91518559,3031.1,3029.9,0.00337128]
[1768925049221,3.91518559,3031.0,3029.9,0.00337128]
[1768925049417,3.49582992,3030.8,3029.9,0.00337128]
[1768925049726,0.41935567,3030.7,3029.9,0.00337128]
[1768925049928,3.49582992,3030.8,3029.9,0.00337128]
[1768925050326,0.41937553,3030.7,3029.9,0.00337128]
[1768925050527,0.41937553,3030.6,3029.9,0.00337128]
[1768925050728,3.49582992,3030.8,3029.9,0.00337128]
[1768925051028,3.91516458,3030.7,3029.9,0.00337128]
[1768925051220,0.41933466,3030.6,3029.9,0.00337128]
[1768925053133,3.49582992,3030.7,3029.9,0.00337128]
[1768925053431,3.49582992,3031.2,3029.9,0.00337128]
[1768925053634,1.37481163,3031.1,3029.9,0.00337128]
[1768925053825,0.4191714,3031.0,3029.9,0.00337128]
[1768925054025,3.49582992,3031.2,3029.9,0.00337128]
[1768925054026,0.41917126,3030.9,3029.9,0.00337128]
[1768925054330,0.41917126,3030.8,3029.9,0.00337128]
[1768925054531,0.41917126,3030.7,3029.9,0.00337128]
[1768925054732,3.49582992,3031.2,3029.9,0.00337128]
[1768925054932,1.3747357,3031.1,3029.9,0.00337128]
[1768925055134,0.41915039,3031.0,3029.9,0.00337128]
[1768925055332,0.41915039,3030.9,3029.9,0.00337128]
[1768925055535,0.41915039,3030.8,3029.9,0.00337128]
[1768925055736,0.41915039,3030.7,3029.9,0.00337128]
[1768925055930,3.44527971,3031.1,3029.9,0.00337128]
[1768925056233,3.86439455,3031.0,3029.9,0.00337128]
[1768925056535,0.41911484,3030.9,3029.9,0.00337128]
[1768925056734,0.41911484,3030.8,3029.9,0.00337128]
[1768925056931,0.16509,3031.4,3030.2,1.76649026]
[1768925057131,1.37454376,3031.3,3030.2,1.76649026]
[1768925057336,0.4191039,3031.2,3030.2,1.76649026]
[1768925057536,3.44527971,3031.1,3030.0,3.799]
[1768925057738,3.86439625,3031.0,3030.0,3.799]
[1768925057939,3.86439647,3030.9,3030.0,3.799]
[1768925058236,0.41911676,3030.8,3030.0,3.799]
[1768925058534,3.44527971,3030.9,3030.0,3.799]
[1768925058725,0.41911402,3030.8,3030.0,3.799]
[1768925058925,3.44527971,3030.9,3030.0,3.799]
[1768925059235,3.86439373,3030.8,3030.0,3.799]
[1768925059440,0.41911402,3030.7,3030.0,3.799]
[1768925059635,0.41911402,3030.7,3029.9,0.00337128]
[1768925062034,3.44527971,3030.8,3029.9,0.00337128]
[1768925062234,0.41920063,3030.7,3029.9,0.00337128]
[1768925062435,3.44527971,3030.8,3029.9,0.00337128]
[1768925062636,0.41930565,3030.7,3029.9,0.00337128]
[1768925062840,3.44527971,3030.8,3029.9,0.00337128]
[1768925063139,0.41930551,3030.7,3029.9,0.00337128]
[1768925063336,0.16511,3031.2,3029.9,0.00337128]
[1768925063540,0.41936084,3031.1,3030.2,1.76649026]
[1768925063842,3.44527971,3031.3,3030.2,1.76649026]
[1768925063843,0.41936084,3031.0,3030.2,1.76649026]
[1768925064038,3.44527971,3031.3,3030.2,1.76649026]
[1768925064239,0.41934102,3031.2,3029.9,0.00337128]
[1768925064439,0.41934102,3031.1,3029.9,0.00337128]
[1768925064634,0.41934102,3031.0,3029.9,0.00337128]
[1768925064941,3.44527971,3031.3,3029.9,0.00337128]
[1768925065140,0.41940745,3031.2,3029.9,0.00337128]
[1768925065444,0.41940745,3031.1,3029.9,0.00337128]
[1768925065644,0.41940745,3031.0,3029.9,0.00337128]
[1768925065940,0.41940745,3030.9,3030.0,3.799]
[1768925066141,3.44527971,3031.3,3030.0,3.799]
[1768925066343,0.41947517,3031.2,3030.0,3.799]
[1768925066534,0.41947517,3031.1,3030.0,3.799]
[1768925066735,0.41947517,3031.0,3030.0,3.799]
[1768925066940,3.44527971,3031.3,3030.0,3.799]
[1768925067136,3.44527971,3031.8,3030.2,1.76649026]
[1768925067342,0.00279899,3031.9,3030.3,3.799]
[1768925067343,4.40439752,3031.7,3030.3,3.799]
[1768925067541,4.40439752,3031.6,3030.3,3.799]
[1768925067741,3.44527971,3031.5,3030.3,3.799]
[1768925068143,3.44527971,3031.3,3030.3,3.799]
[1768925068342,3.86479308,3031.2,3030.3,3.799]
[1768925068648,0.41951337,3031.1,3030.3,3.799]
[1768925068855,0.41951337,3031.1,3030.0,3.799]
[1768925069650,0.41951337,3031.1,3030.2,1.76649026]
[1768925070751,3.61035971,3031.6,3030.2,1.76649026]
[1768925071250,3.44527971,3031.6,3030.2,1.76649026]
[1768925071654,3.44527971,3031.6,3030.6,1.76649026]
[1768925071951,0.16786899,3031.9,3030.6,1.76649026]
[1768925072451,3.6131487,3031.9,3030.2,8.57049026]
[1768925072647,3.44527971,3031.7,3030.2,8.57049026]
[1768925073946,3.44527971,3031.5,3029.9,0.00337128]
[1768925074141,3.44527971,3031.3,3030.3,1.76649026]
[1768925075845,3.61035971,3031.7,3030.3,1.76649026]
[1768925076053,0.95893577,3031.6,3030.3,1.76649026]
[1768925076357,0.95893577,3031.5,3030.3,1.76649026]
[1768925076554,3.61035971,3031.7,3030.3,1.76649026]
[1768925076753,3.44527971,3031.5,3029.9,1.76986154]
[1768925077655,3.61036971,3031.5,3029.9,1.76986154]
[1768925078757,3.44527971,3031.5,3030.4,1.76649026]
[1768925081958,3.6131487,3031.9,3030.4,1.76649026]
[1768925082164,3.44527971,3031.7,3030.4,1.76649026]
[1768925082865,0.41622952,3031.6,3030.4,1.76649026]
[1768925083059,0.41622952,3031.5,3030.4,1.76649026]
[1768925083368,0.41622952,3031.4,3030.4,5.56549026]
[1768925083562,0.41622952,3031.3,3030.4,5.56549026]
[1768925083765,3.44527971,3031.7,3030.4,5.56549026]
[1768925089170,3.44527971,3031.7,3030.5,3.799]
[1768925090871,3.38214152,3031.5,3030.5,3.799]
[1768925095075,3.38214152,3031.5,3030.1,3.799]
[1768925095677,3.79806411,3031.4,3030.1,3.799]
[1768925095875,0.41592259,3031.3,3030.1,3.799]
[1768925096167,0.41592259,3031.2,3030.1,3.799]
[1768925096365,0.41592259,3031.1,3030.1,3.799]
[1768925096565,3.38214152,3031.4,3030.1,3.799]
[1768925096772,0.41595382,3031.3,3030.1,3.799]
[1768925097072,0.41595382,3031.2,3030.5,1.14453023]
[1768925097271,0.41595382,3031.1,3030.5,1.14453023]
[1768925097472,3.38214152,3031.4,3030.7,1.14453023]
[1768925097669,0.41595286,3031.3,3030.7,1.14453023]
[1768925097865,0.41595286,3031.2,3030.5,1.14453023]
[1768925098160,0.41595286,3031.1,3030.5,1.14453023]
[1768925098365,3.38214152,3031.4,3030.5,1.14453023]
[1768925098564,0.41595879,3031.3,3030.5,1.14453023]
[1768925098767,0.41595879,3031.2,3030.5,1.14453023]
[1768925098977,0.41595879,3031.1,3030.5,1.14453023]
[1768925099172,3.38214152,3031.4,3030.5,1.14453023]
[1768925099378,0.41595886,3031.3,3030.5,1.14453023]
[1768925099571,0.41595886,3031.2,3030.5,1.14453023]
[1768925099772,0.41595886,3031.1,3030.5,1.14453023]
[1768925099978,3.38214152,3031.4,3030.5,1.14453023]
[1768925100279,0.41596463,3031.3,3030.3,1.14453023]
[1768925100476,0.41596463,3031.2,3030.5,1.14453023]
[1768925100675,0.41596463,3031.1,3030.5,1.14453023]
[1768925100876,3.38214152,3031.4,3030.5,1.14453023]
[1768925101179,0.41595918,3031.3,3030.7,1.14453023]
[1768925101379,0.00279899,3031.9,3031.2,1.14453023]
[1768925101582,0.00279899,3031.9,3031.3,1.14453023]
[1768925101969,3.38214152,3032.3,3031.7,1.14453023]
[1768925102169,0.16503,3032.7,3031.9,1.14453023]
[1768925102379,4.3408274,3032.6,3031.5,1.14453023]
[1768925102584,3.38214152,3031.9,3031.1,3.799]
[1768925102785,3.38214152,3031.5,3030.4,1.14453023]
[1768925102976,3.38607434,3031.5,3030.1,4.09225456]
[1768925103280,0.00393282,3031.5,3030.1,3.5218864]
[1768925103475,0.00393282,3031.5,3030.1,6.5088864]
[1768925104083,0.00393282,3031.5,3030.1,3.5218864]
[1768925107084,3.54723152,3031.4,3029.9,0.00337128]
[1768925107281,0.00393282,3031.5,3029.9,0.00337128]
[1768925107282,3.38214152,3031.2,3029.9,0.00337128]
[1768925107589,0.16511,3031.0,3029.9,0.00337128]
[1768925107782,3.54725152,3031.0,3029.9,0.00337128]
[1768925107984,3.38214152,3030.8,3029.3,3.5218864]
[1768925108985,3.38214152,3030.8,3029.3,3.52521976]
[1768925110085,3.54727152,3030.8,3029.3,3.52521976]
[1768925110392,3.38214152,3030.8,3029.3,0.00333336]
[1768925110582,3.54728152,3030.5,3029.3,0.00333336]
[1768925112079,3.54730152,3030.2,3029.3,0.00333336]
[1768925112282,3.54730152,3030.2,3028.3,1.76592565]
[1768925112283,3.38214152,3030.0,3028.3,4.74792565]
[1768925112790,3.38214152,3030.0,3028.3,8.26981205]
[1768925113084,3.38214152,3030.0,3028.3,3.5218864]
[1768925113288,0.4104485,3029.9,3028.3,3.5257489]
[1768925113488,3.95777002,3029.8,3028.3,3.5257489]
[1768925113693,3.95778002,3029.7,3028.3,0.0038625]
[1768925113888,3.79259002,3029.6,3028.3,0.0038625]
[1768925114090,3.79259002,3029.5,3028.3,0.0038625]
[1768925114285,3.38214152,3029.5,3028.3,0.0038625]
[1768925114996,0.16519,3029.6,3028.3,0.0038625]
[1768925114997,3.89469367,3029.4,3028.3,0.0038625]
[1768925115187,3.48461989,3029.4,3028.3,0.0038625]
[1768925117197,0.16519,3029.6,3028.3,0.0038625]
[1768925117492,3.64976989,3030.3,3028.3,3.69831129]
[1768925117687,0.4091053,3030.2,3028.3,3.69831129]
[1768925117893,0.4091053,3030.1,3028.3,3.69831129]
[1768925118088,0.4091053,3030.0,3028.3,3.69831129]
[1768925118290,3.64979989,3029.9,3028.3,3.69831129]
[1768925118495,3.64980989,3029.6,3028.3,0.0038625]
[1768925118686,0.16519,3029.6,3028.3,0.0038625]
[1768925118890,0.16519,3029.6,3028.3,3.69831129]
[1768925119591,0.25155602,3030.5,3028.3,0.0038625]
[1768925119592,0.1652,3029.5,3028.3,0.0038625]
[1768925119788,3.48461989,3030.1,3028.3,3.69831129]
[1768925119992,0.40891768,3030.0,3028.3,3.69831129]
[1768925120191,0.40891768,3029.9,3028.3,3.69831129]
[1768925120396,0.16518,3029.9,3028.3,3.69831129]
[1768925120796,3.64975989,3030.5,3028.6,1.76759936]
[1768925121000,3.64975989,3030.5,3028.7,3.69444879]
[1768925121001,0.40877497,3030.4,3028.7,3.69444879]
[1768925121190,3.64975989,3030.5,3028.7,3.69444879]
[1768925121391,0.40878348,3030.4,3028.7,3.69444879]
[1768925121594,3.48461989,3030.5,3028.7,3.69444879]
[1768925121793,0.4087525,3030.4,3028.7,3.69444879]
[1768925122092,3.48461989,3030.5,3028.7,3.69444879]
[1768925122292,0.25609822,3030.7,3028.7,3.69444879]
[1768925122293,0.40875275,3030.4,3028.7,3.69444879]
[1768925122491,0.16512,3030.9,3028.7,3.69444879]
[1768925122693,0.40874753,3030.8,3028.7,3.69444879]
[1768925122996,0.16512,3030.9,3029.8,1.14487267]
[1768925123199,3.48855271,3031.5,3030.1,1.14487267]
[1768925123391,1.35832011,3031.4,3030.1,1.14487267]
[1768925123596,0.40875742,3031.3,3030.1,1.14487267]
[1768925123791,0.1651,3031.3,3030.1,1.14487267]
[1768925123994,0.1651,3031.3,3029.9,3.69444879]
[1768925124492,0.16511,3031.1,3029.8,1.14487267]
[1768925124695,3.64972989,3031.1,3029.8,1.14487267]
[1768925124995,0.00393282,3031.5,3029.5,3.69444879]
[1768925125196,0.40878143,3031.4,3029.5,3.69444879]
[1768925125404,0.00393282,3031.5,3029.5,3.69444879]
[1768925125701,3.89343981,3031.4,3029.5,3.69444879]
[1768925125890,4.05853981,3031.3,3029.5,3.69444879]
[1768925126092,0.16511,3031.1,3029.5,3.69444879]
[1768925126296,3.64972989,3031.1,3029.5,3.69444879]
[1768925126795,3.64972989,3031.1,3028.9,1.93184056]
[1768925126796,4.05864915,3031.0,3029.1,3.69444879]
[1768925127104,3.64973989,3031.0,3029.1,3.69444879]
[1768925128105,3.64973989,3030.9,3029.1,3.69444879]
[1768925129006,3.64973989,3030.8,3029.1,3.69444879]
[1768925129198,3.48461989,3030.6,3028.6,3.69444879]
[1768925129994,3.48461989,3030.3,3028.6,3.69444879]
[1768925131104,3.64976989,3030.3,3028.6,3.69444879]
[1768925131499,0.57452537,3030.2,3028.6,3.69444879]
[1768925131706,0.16516,3030.2,3028.6,3.69444879]
[1768925131900,0.16513,3030.8,3029.6,1.76662056]
[1768925132104,0.40932025,3030.7,3029.2,3.69444879]
[1768925132404,0.16513,3030.8,3029.2,3.69444879]
[1768925132405,0.40932025,3030.6,3029.2,3.69444879]
[1768925132603,0.16513,3030.8,3029.2,3.69444879]
[1768925132792,0.40961564,3030.7,3029.2,3.69444879]
[1768925132994,0.16513,3030.8,3029.2,3.69444879]
[1768925133199,3.48461989,3031.1,3029.2,3.69444879]
[1768925133408,0.40977448,3031.0,3029.2,3.69444879]
[1768925133602,0.40977448,3030.9,3029.2,3.69444879]
[1768925133803,0.42963996,3031.5,3029.2,3.69444879]
[1768925134003,1.52692043,3031.4,3029.2,3.69444879]
[1768925134309,1.52693043,3031.3,3029.2,3.69444879]
[1768925134510,0.40976279,3031.2,3029.2,3.69444879]
[1768925135009,0.40976279,3031.2,3029.2,3.59444879]
[1768925135810,0.40976279,3031.2,3029.3,6.271]
[1768925137009,0.40976279,3031.2,3029.4,3.69444879]
[1768925138604,0.16511,3031.1,3029.4,3.69444879]
[1768925138819,0.40976279,3031.0,3029.4,3.69444879]
[1768925140310,0.00393282,3031.5,3030.8,1.76662056]
[1768925140511,3.48461989,3032.6,3030.7,3.69444879]
[1768925140704,0.95246949,3032.5,3030.7,3.69444879]
[1768925140897,3.48461989,3032.6,3030.7,3.69444879]
[1768925141098,3.48461989,3033.1,3030.7,3.69444879]
[1768925141299,0.95238241,3033.0,3030.7,3.69444879]
[1768925141506,0.95238241,3032.9,3030.7,3.69444879]
[1768925141804,0.00231897,3032.9,3030.7,3.69811373]
[1768925142000,0.16504,3032.4,3030.7,3.69811373]
[1768925142205,0.16505,3032.2,3030.7,0.00366494]
[1768925142501,3.64966989,3032.2,3030.7,0.00366494]
[1768925142699,3.64966989,3032.1,3030.7,0.00366494]
[1768925142900,0.16507,3031.9,3030.7,0.00366494]
[1768925144206,3.66262943,3031.9,3030.7,0.00366494]
[1768925146010,3.60497695,3031.6,3030.7,0.00366494]
[1768925146318,3.77005695,3031.6,3029.7,3.44223805]
[1768925146716,0.16508,3031.6,3029.7,3.44223805]
[1768925146917,3.77006695,3031.5,3029.7,3.44223805]
[1768925147112,3.77006695,3031.5,3029.7,3.44591522]
[1768925147615,4.13993832,3032.3,3029.7,3.44591522]
[1768925147616,3.77006695,3031.4,3029.7,3.44591522]
[1768925148122,3.77007695,3031.2,3029.7,0.00367717]
[1768925148514,0.1651,3031.2,3029.7,3.74371885]
[1768925151223,5.141,3032.1,3029.7,0.00367717]
[1768925151224,3.77009695,3030.9,3029.7,0.00367717]
[1768925151416,0.16512,3030.8,3029.7,0.00367717]
[1768925151718,0.16513,3030.7,3029.7,0.00367717]
[1768925152020,0.16916494,3030.7,3029.7,0.00367717]
[1768925152215,3.77011695,3030.5,3028.7,3.74004168]
[1768925152419,0.40754203,3030.4,3028.7,3.74004168]
[1768925152623,0.40754203,3030.3,3028.7,3.74004168]
[1768925152823,3.77011695,3030.5,3028.7,3.74004168]
[1768925153023,4.17766916,3030.4,3028.7,3.74004168]
[1768925153323,3.77013695,3030.2,3028.7,0.00342962]
[1768925153509,0.40754221,3030.1,3028.7,0.00342962]
[1768925153917,0.57270221,3030.1,3028.7,0.00342962]
[1768925154215,0.40754221,3030.0,3028.7,0.00342962]
[1768925154923,0.57271221,3030.0,3028.7,0.00342962]
[1768925155229,0.40754221,3029.9,3028.7,0.00342962]
[1768925155525,0.40754221,3029.8,3028.7,0.00342962]
[1768925155713,0.16517,3030.0,3028.7,0.00342962]
[1768925155913,0.4072334,3029.9,3028.7,0.00342962]
[1768925156117,0.4072334,3029.8,3028.7,0.00342962]
[1768925156321,4.01221035,3029.8,3028.7,0.00342962]
[1768925156622,4.01221035,3029.7,3028.7,0.00342962]
[1768925156817,3.60497695,3029.4,3027.7,3.74004168]
[1768925157318,1.35710994,3029.3,3027.2,3.74004168]
[1768925157624,3.60497695,3029.0,3027.0,3.303]
[1768925157822,3.60497695,3028.8,3027.0,3.3070893]
[1768925158017,0.40713554,3028.7,3027.0,3.3070893]
[1768925158219,3.60497695,3028.8,3027.0,3.3070893]
[1768925158418,4.01140637,3028.7,3027.0,3.3070893]
[1768925158722,0.16525,3028.6,3027.0,3.3070893]
[1768925160411,0.16525,3028.5,3027.0,0.0040893]
[1768925160612,3.60497695,3028.3,3027.0,0.0040893]
[1768925161618,3.77023695,3028.3,3027.0,0.0040893]
[1768925163623,3.60497695,3027.7,3025.7,3.74004168]
[1768925164623,0.00378747,3028.5,3025.8,3.74004168]
[1768925164624,3.60497695,3028.2,3025.8,3.74004168]
[1768925165031,3.77024695,3028.2,3025.8,3.74004168]
[1768925165332,3.60497695,3028.2,3025.8,3.74004168]
[1768925165830,3.60497695,3027.8,3025.8,7.04504168]
[1768925166030,3.60497695,3028.1,3025.9,3.74004168]
[1768925166936,3.60497695,3028.1,3026.3,3.74004168]
[1768925167131,0.00378747,3028.5,3026.3,3.74004168]
[1768925168036,3.77401442,3028.5,3026.3,3.74004168]
[1768925169238,3.77401442,3028.5,3026.5,3.74004168]
[1768925169436,3.77401442,3028.5,3026.5,7.04504168]
[1768925169637,3.77401442,3028.5,3026.6,3.74004168]
[1768925170134,3.77401442,3028.5,3026.7,1.76662056]
[1768925170433,0.00378747,3028.5,3026.8,3.74004168]
[1768925171642,3.60876442,3028.5,3026.8,3.74004168]